{"text_format":"1","workbook":"xlsx","n_sheets":6,"sheets":["SolCotizacion","ResumenCotizacion","Consolidado","Cotizacion","LISTAS","CSV"],"not_rendered":{"charts":0,"images":0,"macros":1,"external_links":1,"defined_names":348,"comments":0,"pivot_tables":0},"unopened":[],"bounds":{"document_bytes":16777216,"sheet_cells":100000,"rows_first":2000,"rows_last":500,"rows_between":2000,"halvings":0,"cell_chars":16384,"cell_head_chars":4096},"cells_cut":0,"cells_raw":0,"read":"whole","date_system":"1900"}

{"sheet":"SolCotizacion","index":0,"n_rows":45,"n_cols":17,"rows_kept":45,"cut":false,"hidden":false,"merged":[[34,8,34,9],[35,8,35,9],[36,10,36,11],[35,10,35,11],[22,7,22,8],[34,10,34,11],[25,7,25,8],[26,7,26,8],[36,8,36,9],[27,7,27,8],[24,7,24,8],[28,7,28,8],[25,2,25,6],[11,4,11,8],[13,1,13,3],[13,4,13,8],[15,1,15,15],[17,1,17,2],[17,3,17,4],[11,1,11,3],[42,5,42,6],[40,2,40,6],[41,2,41,6],[39,1,39,7],[19,1,19,2],[19,3,19,4],[30,1,30,11],[21,7,21,8],[23,7,23,8],[26,2,26,6],[27,2,27,6],[28,2,28,6],[21,2,21,6],[22,2,22,6],[23,2,23,6],[24,2,24,6],[32,1,32,3],[34,5,34,6],[35,5,35,6],[35,2,35,4],[34,2,34,4],[7,12,7,15],[9,10,9,11],[7,10,7,11],[9,12,9,15],[9,1,9,3],[9,4,9,8],[7,1,7,3],[7,4,7,8],[0,1,1,15],[5,1,5,3],[5,4,5,8],[5,10,5,11],[3,1,3,15],[5,12,5,15]]}
[null,"Solicitud de Cotización - ERC"]
[]
[null,"Versión: 5","2018-01-03"]
[null,"Información de la Entidad Compradora"]
[]
[null,"Nombre de la Entidad:",null,null,null,null,null,null,null,null,"NIT:"]
[]
[null,"Dirección de la Entidad:",null,null,null,null,null,null,null,null,"Correo de contacto:"]
[]
[null,"Municipio:",null,null,null,null,null,null,null,null,"Teléfono de contacto:"]
[]
[null,"Nombre funcionario Comprador:"]
[]
[]
[]
[null,"Solicitud de Cotización"]
[]
[null,"Región",null,"4 Andina norte"]
[]
[null,"Meses de Tratamiento"]
[]
[null,"Ref. Servicio","Servicio",null,null,null,null,"Número total de Pacientes por mes"]
[null,1,"Conjunto integral TRR Hemodiálisis",null,null,null,null,null,null,null,null,null,null,null,null,500,2999]
[null,2,"Conjunto integral TRR diálisis peritoneal"]
[null,"Ref. Servicio","Servicio",null,null,null,null,"Número total de Sesiones/Consultas por mes"]
[null,3,"Diálisis aguda"]
[null,4,"Consulta nefrología adulto"]
[null,5,"Interconsulta hospitalaria"]
[null,6,"Consulta nefrología pediátrica"]
[]
[null,"Ubicación de los Pacientes"]
[]
[null,"Cantidad de Filas a Agregar o Eliminar",null,null,1]
[]
[null,"No.","Tipo de Terapia de Reemplazo Renal",null,null,"Departamento",null,"Municipio","Rural o Urbana",null,"Cantidad"]
[null,1]
[null,null,null,null,null,null,null,null,"Total",null,{"$f":"SUM(K36:L36)","v":0}]
[]
[]
[null,"Gravámenes adicionales (estampillas)"]
[null,"No","Descripción",null,null,null,null,"Porcentaje"]
[null,1]
[null,null,null,null,null,"Total porcentaje:",null,{"$f":"SUM(H42:H42)","v":0}]
[null,null,null,"Filas a agregar o eliminar Gravámenes:"]
[null,null,null,1]

{"sheet":"ResumenCotizacion","index":1,"n_rows":43,"n_cols":18,"rows_kept":43,"cut":false,"hidden":false,"merged":[[21,2,21,6],[24,11,24,12],[23,11,23,12],[27,11,27,12],[26,2,26,6],[25,7,25,8],[21,9,21,10],[22,9,22,10],[24,9,24,10],[23,9,23,10],[25,9,25,10],[35,10,35,11],[40,2,40,6],[41,2,41,6],[23,2,23,6],[23,7,23,8],[24,2,24,6],[24,7,24,8],[25,2,25,6],[35,2,35,4],[35,5,35,6],[35,8,35,9],[26,9,26,10],[27,9,27,10],[28,9,28,10],[26,7,26,8],[39,1,39,7],[42,5,42,6],[21,11,21,12],[22,11,22,12],[25,11,25,12],[26,11,26,12],[28,2,28,6],[28,7,28,8],[32,1,32,11],[34,2,34,4],[34,5,34,6],[34,8,34,9],[34,10,34,11],[28,11,28,12],[21,7,21,8],[22,2,22,6],[22,7,22,8],[9,4,9,8],[9,10,9,11],[9,12,9,16],[7,1,7,3],[7,10,7,11],[0,1,1,16],[3,1,3,16],[5,1,5,3],[5,4,5,8],[5,10,5,11],[5,12,5,16],[36,8,36,9],[36,10,36,11],[27,2,27,6],[27,7,27,8],[7,4,7,8],[11,1,11,3],[13,1,13,3],[13,4,13,8],[11,4,11,8],[15,1,15,16],[17,1,17,2],[17,3,17,4],[19,1,19,2],[19,3,19,4],[7,12,7,16],[9,1,9,3]]}
[null,"Solicitud de Cotización - ERC",null,null,null,null,null,null,null,null,null,null,null,null,null,null,null,{"$f":"H43","v":0}]
[]
[]
[null,"Información de la Entidad Compradora"]
[]
[null,"Nombre de la Entidad:",null,null,{"$f":"IF(SolCotizacion!E6=\"\",\"\",SolCotizacion!E6)","v":""},null,null,null,null,null,"NIT:",null,{"$f":"IF(SolCotizacion!M6=\"\",\"\",SolCotizacion!M6)","v":""}]
[]
[null,"Dirección de la Entidad:",null,null,{"$f":"IF(SolCotizacion!E8=\"\",\"\",SolCotizacion!E8)","v":""},null,null,null,null,null,"Correo de contacto:",null,{"$f":"IF(SolCotizacion!M8=\"\",\"\",SolCotizacion!M8)","v":""}]
[]
[null,"Municipio:",null,null,{"$f":"IF(SolCotizacion!E10=\"\",\"\",SolCotizacion!E10)","v":""},null,null,null,null,null,"Teléfono de contacto:",null,{"$f":"IF(SolCotizacion!M10=\"\",\"\",SolCotizacion!M10)","v":""}]
[]
[null,"Nombre funcionario Comprador:",null,null,{"$f":"IF(SolCotizacion!E12=\"\",\"\",SolCotizacion!E12)","v":""}]
[]
[]
[]
[null,"Resumen de Cotización"]
[]
[null,"Región",null,{"$f":"IF(SolCotizacion!D18=\"\",\"\",SolCotizacion!D18)","v":"4 Andina norte"}]
[]
[null,"Meses de Tratamiento",null,{"$f":"IF(SolCotizacion!D20=\"\",\"\",SolCotizacion!D20)","v":""}]
[]
[null,"Ref. Servicio","Servicio",null,null,null,null,"Número total de Pacientes por mes",null,"Meses",null,"Precio unitario",null,"Gravámenes","Precio con gravámenes","Precio + gravámenes * meses","Precio meses * cantidad","Precio Total"]
[null,1,"Conjunto integral TRR Hemodiálisis",null,null,null,null,null,null,null,null,null,null,{"$f":"L23/(1-R1)-L23","v":0},{"$f":"L23+N23","v":0},{"$f":"O23*J23","v":0},{"$f":"P23*H23","v":0},{"$f":"Q23","v":0}]
[null,2,"Conjunto integral TRR diálisis peritoneal",null,null,null,null,null,null,null,null,null,null,{"$f":"L24/(1-R1)-L24","v":0},{"$f":"L24+N24","v":0},{"$f":"O24*J24","v":0},{"$f":"P24*H24","v":0},{"$f":"Q24","v":0}]
[null,"Ref. Servicio","Servicio",null,null,null,null,"Número total de Sesiones/Consultas por mes"]
[null,3,"Diálisis aguda",null,null,null,null,null,null,null,null,null,null,{"$f":"L26/(1-R1)-L26","v":0},{"$f":"L26+N26","v":0},{"$f":"O26*J26","v":0},{"$f":"P26*H26","v":0},{"$f":"Q26","v":0}]
[null,4,"Consulta nefrología adulto",null,null,null,null,null,null,null,null,null,null,{"$f":"L27/(1-R1)-L27","v":0},{"$f":"L27+N27","v":0},{"$f":"O27*J27","v":0},{"$f":"P27*H27","v":0},{"$f":"Q27","v":0}]
[null,5,"Interconsulta hospitalaria",null,null,null,null,null,null,null,null,null,null,{"$f":"L28/(1-R1)-L28","v":0},{"$f":"L28+N28","v":0},{"$f":"O28*J28","v":0},{"$f":"P28*H28","v":0},{"$f":"Q28","v":0}]
[null,6,"Consulta nefrología pediátrica",null,null,null,null,null,null,null,null,null,null,{"$f":"L29/(1-R1)-L29","v":0},{"$f":"L29+N29","v":0},{"$f":"O29*J29","v":0},{"$f":"P29*H29","v":0},{"$f":"Q29","v":0}]
[null,null,null,null,null,null,null,null,null,null,null,null,null,null,null,null,"Valor Total",{"$f":"SUM(R23:R29)","v":0}]
[]
[]
[null,"Ubicación de los Pacientes"]
[]
[null,"No.","Tipo de Terapia de Reemplazo Renal",null,null,"Departamento",null,"Municipio","Rural o Urbana",null,"Cantidad"]
[null,1]
[null,null,null,null,null,null,null,null,"Total",null,{"$f":"SUM(K36:L36)","v":0}]
[]
[]
[null,"Gravámenes adicionales (estampillas)"]
[null,"No","Descripción",null,null,null,null,"Porcentaje"]
[null,1]
[null,null,null,null,null,"Total porcentaje:",null,{"$f":"SUM(H42:H42)","v":0}]

{"sheet":"Consolidado","index":2,"n_rows":575,"n_cols":11,"rows_kept":575,"cut":false,"hidden":true,"merged":[]}
["Ref.  Artículo. ","Descripción","Región","RTS S.A.S.","Fresenius Medical Care",null,null,"Menor valor","RTS S.A.S.","Fresenius Medical Care"]
[1,"Conjunto integral TRR Hemodiálisis","1 Costa",2806350,2892122,null,null,{"$f":"MIN(I2:J2)","v":281126368},{"$f":"SUM(IF(F:F=1,D:D*G:G))","v":281126368},{"$f":"SUM(IF(F:F=1,E:E*G:G))","v":294507227}]
[2,"Conjunto integral TRR diálisis peritoneal","1 Costa",2806350,2892122]
[3,"diálisis aguda","1 Costa",470196,568109]
[4,"Consulta nefrología adulto","1 Costa",67352,63540]
[5,"Interconsulta hospitalaria","1 Costa",72012,105900]
[6,"Consulta nefrología pediátrica","1 Costa",79425,127080]
[1,"Conjunto integral TRR Hemodiálisis","2 Occidente",2965200,2740163]
[2,"Conjunto integral TRR diálisis peritoneal","2 Occidente",2965200,2740163]
[3,"diálisis aguda","2 Occidente",470196,568109]
[4,"Consulta nefrología adulto","2 Occidente",67352,63540]
[5,"Interconsulta hospitalaria","2 Occidente",72012,105900]
[6,"Consulta nefrología pediátrica","2 Occidente",79425,127080]
[1,"Conjunto integral TRR Hemodiálisis","3 Antioquia y eje cafetero",2753400,2879633]
[2,"Conjunto integral TRR diálisis peritoneal","3 Antioquia y eje cafetero",2753400,2879633]
[3,"diálisis aguda","3 Antioquia y eje cafetero",470196,568109]
[4,"Consulta nefrología adulto","3 Antioquia y eje cafetero",67352,63540]
[5,"Interconsulta hospitalaria","3 Antioquia y eje cafetero",72012,105900]
[6,"Consulta nefrología pediátrica","3 Antioquia y eje cafetero",79425,127080]
[1,"Conjunto integral TRR Hemodiálisis","4 Andina norte",2753400,2868725,1,50]
[2,"Conjunto integral TRR diálisis peritoneal","4 Andina norte",2753400,2868725,1,50]
[3,"diálisis aguda","4 Andina norte",470196,568109,1,3]
[4,"Consulta nefrología adulto","4 Andina norte",67352,63540,1,20]
[5,"Interconsulta hospitalaria","4 Andina norte",72012,105900,1,20]
[6,"Consulta nefrología pediátrica","4 Andina norte",79425,127080,1,20]
[1,"Conjunto integral TRR Hemodiálisis","5 Andina centro y otros",2965200,2892122]
[2,"Conjunto integral TRR diálisis peritoneal","5 Andina centro y otros",2965200,2892122]
[3,"diálisis aguda","5 Andina centro y otros",470196,568109]
[4,"Consulta nefrología adulto","5 Andina centro y otros",67352,63540]
[5,"Interconsulta hospitalaria","5 Andina centro y otros",72012,105900]
[6,"Consulta nefrología pediátrica","5 Andina centro y otros",79425,127080]
[]
[]
[]
[]
[]
[]
[]
[]
[]
[]
[]
[]
[]
[]
[]
[]
[]
[]
[]
[]
[]
[]
[]
[]
[]
[]
[]
[]
[]
[]
[]
[]
[]
[]
[]
[]
[]
[]
[]
[]
[]
[]
[]
[]
[]
[]
[]
[]
[]
[]
[]
[]
[]
[]
[]
[]
[]
[]
[]
[]
[]
[]
[]
[]
[]
[]
[]
[]
[]
[]
[]
[]
[]
[]
[]
[]
[]
[]
[]
[]
[]
[]
[]
[]
[]
[]
[]
[]
[]
[]
[]
[]
[]
[]
[]
[]
[]
[]
[]
[]
[]
[]
[]
[]
[]
[]
[]
[]
[]
[]
[]
[]
[]
[]
[]
[]
[]
[]
[]
[]
[null,null,null,null,null,null,null,null,null,null,1]
[]
[]
[]
[]
[]
[]
[]
[]
[]
[]
[]
[]
[]
[]
[]
[]
[]
[]
[]
[]
[]
[]
[]
[]
[]
[]
[]
[]
[]
[]
[]
[]
[]
[]
[]
[]
[]
[]
[]
[]
[]
[]
[]
[]
[]
[]
[]
[]
[]
[]
[]
[]
[]
[]
[]
[]
[]
[]
[]
[]
[]
[]
[]
[]
[]
[]
[]
[]
[]
[]
[]
[]
[]
[]
[]
[]
[]
[]
[]
[]
[]
[]
[]
[]
[]
[]
[]
[]
[]
[]
[]
[]
[]
[]
[]
[]
[]
[]
[]
[]
[]
[]
[]
[]
[]
[]
[]
[]
[]
[]
[]
[]
[]
[]
[]
[]
[]
[]
[]
[]
[]
[]
[]
[]
[]
[]
[]
[]
[]
[]
[]
[]
[]
[]
[]
[]
[]
[]
[]
[]
[]
[]
[]
[]
[]
[]
[]
[]
[]
[]
[]
[]
[]
[]
[]
[]
[]
[]
[]
[]
[]
[]
[]
[]
[]
[]
[]
[]
[]
[]
[]
[]
[]
[]
[]
[]
[]
[]
[]
[]
[]
[]
[]
[]
[]
[]
[]
[]
[]
[]
[]
[]
[]
[]
[]
[]
[]
[]
[]
[]
[]
[]
[]
[]
[]
[]
[]
[]
[]
[]
[]
[]
[]
[]
[]
[]
[]
[]
[]
[]
[]
[]
[]
[]
[]
[]
[]
[]
[]
[]
[]
[]
[]
[]
[]
[]
[]
[]
[]
[]
[]
[]
[]
[]
[]
[]
[]
[]
[]
[]
[]
[]
[]
[]
[]
[]
[]
[]
[]
[]
[]
[]
[]
[]
[]
[]
[]
[]
[]
[]
[]
[]
[]
[]
[]
[]
[]
[]
[]
[]
[]
[]
[]
[]
[]
[]
[]
[]
[]
[]
[]
[]
[]
[]
[]
[]
[]
[]
[]
[]
[]
[]
[]
[]
[]
[]
[]
[]
[]
[]
[]
[]
[]
[]
[]
[]
[]
[]
[]
[]
[]
[]
[]
[]
[]
[]
[]
[]
[]
[]
[]
[]
[]
[]
[]
[]
[]
[]
[]
[]
[]
[]
[]
[]
[]
[]
[]
[]
[]
[]
[]
[]
[]
[]
[]
[]
[]
[]
[]
[]
[]
[]
[]
[]
[]
[]
[]
[]
[]
[]
[]
[]
[]
[]
[]
[]
[]
[]
[]
[]
[]
[]
[]
[]
[]
[]
[]
[]
[]
[]
[]
[]
[]
[]
[]
[]
[]
[]
[]
[]
[]
[]
[]
[]
[]
[]
[]
[]
[]
[]
[]
[]
[]
[]
[]
[]
[]
[]
[]
[]
[]
[]
[1,3500]

{"sheet":"Cotizacion","index":3,"n_rows":44,"n_cols":20,"rows_kept":44,"cut":false,"hidden":false,"merged":[[29,2,29,6],[29,7,29,8],[29,11,29,12],[33,1,33,11],[29,9,29,10],[35,8,35,9],[35,10,35,11],[36,10,36,11],[40,1,40,7],[41,2,41,6],[36,8,36,9],[42,2,42,6],[43,5,43,6],[37,8,37,9],[37,10,37,11],[27,11,27,12],[28,2,28,6],[28,7,28,8],[28,11,28,12],[27,9,27,10],[28,9,28,10],[36,2,36,4],[36,5,36,6],[35,2,35,4],[35,5,35,6],[27,2,27,6],[27,7,27,8],[25,11,25,12],[26,2,26,6],[26,7,26,8],[26,11,26,12],[25,9,25,10],[26,9,26,10],[25,2,25,6],[25,7,25,8],[18,3,18,4],[20,1,20,2],[20,3,20,4],[22,2,22,6],[22,7,22,8],[18,1,18,2],[20,8,20,10],[22,9,22,10],[20,6,20,7],[0,1,1,15],[3,1,3,15],[5,1,5,3],[5,4,5,8],[5,10,5,11],[5,12,5,15],[7,1,7,3],[7,4,7,8],[7,10,7,11],[7,12,7,15],[9,1,9,3],[9,4,9,8],[9,10,9,11],[9,12,9,15],[22,11,22,12],[23,2,23,6],[23,7,23,8],[23,11,23,12],[24,2,24,6],[24,7,24,8],[24,11,24,12],[23,9,23,10],[24,9,24,10],[11,1,11,3],[11,4,11,8],[13,1,13,3],[13,4,13,8],[15,1,15,15]]}
[null,"Solicitud de Cotización - ERC",null,null,null,null,null,null,null,null,null,null,null,null,null,null,null,{"$f":"H44","v":0}]
[]
[]
[null,"Información de la Entidad Compradora"]
[]
[null,"Nombre de la Entidad:",null,null,{"$f":"IF(SolCotizacion!E6=\"\",\"\",SolCotizacion!E6)","v":""},null,null,null,null,null,"NIT:",null,{"$f":"IF(SolCotizacion!M6=\"\",\"\",SolCotizacion!M6)","v":""}]
[]
[null,"Dirección de la Entidad:",null,null,{"$f":"IF(SolCotizacion!E8=\"\",\"\",SolCotizacion!E8)","v":""},null,null,null,null,null,"Correo de contacto:",null,{"$f":"IF(SolCotizacion!M8=\"\",\"\",SolCotizacion!M8)","v":""}]
[]
[null,"Municipio:",null,null,{"$f":"IF(SolCotizacion!E10=\"\",\"\",SolCotizacion!E10)","v":""},null,null,null,null,null,"Teléfono de contacto:",null,{"$f":"IF(SolCotizacion!M10=\"\",\"\",SolCotizacion!M10)","v":""}]
[]
[null,"Nombre funcionario Comprador:",null,null,{"$f":"IF(SolCotizacion!E12=\"\",\"\",SolCotizacion!E12)","v":""}]
[]
[]
[]
[null,"Resumen de Cotización"]
[]
[]
[null,"Región",null,{"$f":"IF(SolCotizacion!D18=\"\",\"\",SolCotizacion!D18)","v":"4 Andina norte"}]
[]
[null,"Meses de Tratamiento",null,{"$f":"IF(SolCotizacion!D20=\"\",\"\",SolCotizacion!D20)","v":""},null,null,"Proveedor"]
[]
[null,"Ref. Servicio","Servicio",null,null,null,null,"Número total de Pacientes por mes",null,"Meses",null,"Precio unitario",null,"Descuento","Precio con descuento","Gravámenes","Precio con gravámenes","Precio + gravámenes * meses","Precio meses * cantidad","Precio Total"]
[null,1,"Conjunto integral TRR Hemodiálisis",null,null,null,null,null,null,null,null,null,null,null,{"$f":"L24-(L24*N24)","v":0},{"$f":"O24/(1-R1)-O24","v":0},{"$f":"O24+P24","v":0},{"$f":"Q24*J24","v":0},{"$f":"R24*H24","v":0},{"$f":"S24","v":0}]
[null,2,"Conjunto integral TRR diálisis peritoneal",null,null,null,null,null,null,null,null,null,null,null,{"$f":"L25-(L25*N25)","v":0},{"$f":"O25/(1-R1)-O25","v":0},{"$f":"O25+P25","v":0},{"$f":"Q25*J25","v":0},{"$f":"R25*H25","v":0},{"$f":"S25","v":0}]
[null,"Ref. Servicio","Servicio",null,null,null,null,"Número total de Sesiones/Consultas por mes"]
[null,3,"Diálisis aguda",null,null,null,null,null,null,null,null,null,null,null,{"$f":"L27-(L27*N27)","v":0},{"$f":"O27/(1-R1)-O27","v":0},{"$f":"O27+P27","v":0},{"$f":"Q27*J27","v":0},{"$f":"R27*H27","v":0},{"$f":"S27","v":0}]
[null,4,"Consulta nefrología adulto",null,null,null,null,null,null,null,null,null,null,null,{"$f":"L28-(L28*N28)","v":0},{"$f":"O28/(1-R1)-O28","v":0},{"$f":"O28+P28","v":0},{"$f":"Q28*J28","v":0},{"$f":"R28*H28","v":0},{"$f":"S28","v":0}]
[null,5,"Interconsulta hospitalaria",null,null,null,null,null,null,null,null,null,null,null,{"$f":"L29-(L29*N29)","v":0},{"$f":"O29/(1-R1)-O29","v":0},{"$f":"O29+P29","v":0},{"$f":"Q29*J29","v":0},{"$f":"R29*H29","v":0},{"$f":"S29","v":0}]
[null,6,"Consulta nefrología pediátrica",null,null,null,null,null,null,null,null,null,null,null,{"$f":"L30-(L30*N30)","v":0},{"$f":"O30/(1-R1)-O30","v":0},{"$f":"O30+P30","v":0},{"$f":"Q30*J30","v":0},{"$f":"R30*H30","v":0},{"$f":"S30","v":0}]
[null,null,null,null,null,null,null,null,null,null,null,null,null,null,null,null,null,null,"Valor Total",{"$f":"SUM(T24:T30)","v":0}]
[]
[]
[null,"Ubicación de los Pacientes"]
[]
[null,"No.","Tipo de Terapia de Reemplazo Renal",null,null,"Departamento",null,"Municipio","Rural o Urbana",null,"Cantidad"]
[null,1]
[null,null,null,null,null,null,null,null,"Total",null,{"$f":"SUM(K37:L37)","v":0}]
[]
[]
[null,"Gravámenes adicionales (estampillas)"]
[null,"No","Descripción",null,null,null,null,"Porcentaje"]
[null,1]
[null,null,null,null,null,"Total porcentaje:",null,{"$f":"SUM(H43:H43)","v":0}]

{"sheet":"LISTAS","index":4,"n_rows":126,"n_cols":41,"rows_kept":126,"cut":false,"hidden":true,"merged":[]}
["region","terapiarenal","proveedores","1Costa","2Occidente","3Antioquiayejecafetero","4Andinanorte","5Andinacentroyotros","AMAZONAS","ANTIOQUIA","ARAUCA","ARCHIPIÉLAGODESANANDRÉSPROVIDENCIAY","ATLÁNTICO","BOGOTÁDC","BOLÍVAR","BOYACÁ","CALDAS","CAQUETÁ","CASANARE","CAUCA","CESAR","CHOCÓ","CÓRDOBA","CUNDINAMARCA","GUAINÍA","GUAVIARE","HUILA","LAGUAJIRA","MAGDALENA","META","NARIÑO","NORTEDESANTANDER","QUINDÍO","RISARALDA","SANTANDER","SUCRE","TOLIMA","VALLEDELCAUCA","VAUPÉS","VICHADA","PUTUMAYO"]
["1 Costa","Conjunto integral TRR Hemodiálisis","RTS S.A.S.","ATLÁNTICO","CAUCA","ANTIOQUIA","NORTE DE SANTANDER","AMAZONAS","EL ENCANTO","ABEJORRAL","ARAUCA","PROVIDENCIA","BARANOA","BOGOTÁ, D.C.","ACHÍ","ALMEIDA","AGUADAS","ALBANIA","AGUAZUL","ALMAGUER","AGUACHICA","ACANDÍ","AYAPEL","AGUA DE DIOS","BARRANCO MINAS","CALAMAR","ACEVEDO","ALBANIA","ALGARROBO","ACACÍAS","ALBÁN","ÁBREGO","ARMENIA","APÍA","AGUADA","BUENAVISTA","ALPUJARRA","ALCALÁ","CARURÚ","CUMARIBO","COLÓN"]
["2 Occidente","Conjunto integral TRR diálisis peritoneal","Fresenius Medical Care","BOLÍVAR","NARIÑO","CALDAS","SANTANDER","BOGOTÁ, D. C.","LA CHORRERA","ABRIAQUÍ","ARAUQUITA","SAN ANDRÉS","BARRANQUILLA",null,"ALTOS DEL ROSARIO","AQUITANIA","ANSERMA","BELÉN DE LOS ANDAQUÍES","CHÁMEZA","ARGELIA","AGUSTÍN CODAZZI","ALTO BAUDÓ","BUENAVISTA","ALBÁN","CACAHUAL","EL RETORNO","AGRADO","BARRANCAS","ARACATACA","BARRANCA DE UPÍA","ALDANA","ARBOLEDAS","BUENAVISTA","BALBOA","ALBANIA","CAIMITO","ALVARADO","ANDALUCÍA","MITÚ","LA PRIMAVERA","MOCOA"]
["3 Antioquia y eje cafetero",null,null,"CESAR","VALLE DEL CAUCA","CHOCÓ","CASANARE","CUNDINAMARCA","LA PEDRERA","ALEJANDRÍA","CRAVO NORTE",null,"CAMPO DE LA CRUZ",null,"ARENAL","ARCABUCO","ARANZAZU","CARTAGENA DEL CHAIRÁ","HATO COROZAL","BALBOA","ASTREA","ATRATO","CANALETE","ANAPOIMA","INÍRIDA","MIRAFLORES","AIPE","DIBULLA","ARIGUANÍ","CABUYARO","ANCUYÁ","BOCHALEMA","CALARCÁ","BELÉN DE UMBRÍA","ARATOCA","CHALÁN","AMBALEMA","ANSERMANUEVO","PACOA","PUERTO CARREÑO","ORITO"]
["4 Andina norte",null,null,"CÓRDOBA","HUILA","QUINDÍO","META","BOYACÁ","LA VICTORIA","AMAGÁ","FORTUL",null,"CANDELARIA",null,"ARJONA","BELÉN","BELALCÁZAR","CURILLO","LA SALINA","BOLÍVAR","BECERRIL","BAGADÓ","CERETÉ","ANOLAIMA","LA GUADALUPE","SAN JOSÉ DEL GUAVIARE","ALGECIRAS","DISTRACCIÓN","CERRO DE SAN ANTONIO","CASTILLA LA NUEVA","ARBOLEDA","BUCARASICA","CIRCASIA","DOSQUEBRADAS","BARBOSA","COLOSÓ","ANZOÁTEGUI","ARGELIA","PAPUNAUA","SANTA ROSALÍA","PUERTO ASÍS"]
["5 Andina centro y otros",null,null,"LA GUAJIRA","TOLIMA","RISARALDA",null,"ARAUCA","LETICIA","AMALFI","PUERTO RONDÓN",null,"GALAPA",null,"ARROYOHONDO","BERBEO","CHINCHINÁ","EL DONCELLO","MANÍ","BUENOS AIRES","BOSCONIA","BAHÍA SOLANO","CHIMÁ","APULO","MAPIRIPANA",null,"ALTAMIRA","EL MOLINO","CHIVOLO","CUBARRAL","BARBACOAS","CÁCHIRA","CÓRDOBA","GUÁTICA","BARICHARA","COROZAL","ARMERO GUAYABAL","BOLÍVAR","TARAIRA",null,"PUERTO CAICEDO"]
[null,null,null,"MAGDALENA",null,null,null,"CAQUETÁ","MIRITÍ - PARANÁ","ANDES","SARAVENA",null,"JUAN DE ACOSTA",null,"BARRANCO DE LOBA","BETÉITIVA","FILADELFIA","EL PAUJÍL","MONTERREY","CAJIBÍO","CHIMICHAGUA","BAJO BAUDÓ","CHINÚ","ARBELÁEZ","MORICHAL",null,"BARAYA","FONSECA","CIÉNAGA","CUMARAL","BELÉN","CÁCOTA","FILANDIA","LA CELIA","BARRANCABERMEJA","COVEÑAS","ATACO","BUENAVENTURA","YAVARATÉ",null,"PUERTO GUZMÁN"]
[null,null,null,"ARCHIPIÉLAGO DE SAN ANDRÉS, PROVIDENCIA Y",null,null,null,"GUAINÍA","PUERTO ALEGRÍA","ANGELÓPOLIS","TAME",null,"LURUACO",null,"CALAMAR","BOAVITA","LA DORADA","FLORENCIA","NUNCHÍA","CALDONO","CHIRIGUANÁ","BOJAYÁ","CIÉNAGA DE ORO","BELTRÁN","PANA PANA",null,"CAMPOALEGRE","HATONUEVO","CONCORDIA","EL CALVARIO","BUESACO","CHINÁCOTA","GÉNOVA","LA VIRGINIA","BETULIA","EL ROBLE","CAJAMARCA","BUGALAGRANDE",null,null,"PUERTO LEGUÍZAMO"]
[null,null,null,"SUCRE",null,null,null,"GUAVIARE","PUERTO ARICA","ANGOSTURA",null,null,"MALAMBO",null,"CANTAGALLO","BOYACÁ","LA MERCED","LA MONTAÑITA","OROCUÉ","CALOTO","CURUMANÍ","CARMEN DEL DARIÉN","COTORRA","BITUIMA","PUERTO COLOMBIA",null,"COLOMBIA","LA JAGUA DEL PILAR","EL BANCO","EL CASTILLO","CHACHAGÜÍ","CHITAGÁ","LA TEBAIDA","MARSELLA","BOLÍVAR","GALERAS","CARMEN DE APICALÁ","CAICEDONIA",null,null,"SAN FRANCISCO"]
[null,null,null,null,null,null,null,"VAUPÉS","PUERTO NARIÑO","ANORÍ",null,null,"MANATÍ",null,"CARTAGENA DE INDIAS","BRICEÑO","MANIZALES","MILÁN","PAZ DE ARIPORO","CORINTO","EL COPEY","CÉRTEGUI","LA APARTADA","BOJACÁ","SAN FELIPE",null,"ELÍAS","MAICAO","EL PIÑÓN","EL DORADO","COLÓN","CONVENCIÓN","MONTENEGRO","MISTRATÓ","BUCARAMANGA","GUARANDA","CASABIANCA","CALI",null,null,"SAN MIGUEL"]
[null,null,null,null,null,null,null,"VICHADA","PUERTO SANTANDER","ANZÁ",null,null,"PALMAR DE VARELA",null,"CICUCO","BUENAVISTA","MANZANARES","MORELIA","PORE","EL TAMBO","EL PASO","CONDOTO","LORICA","CABRERA",null,null,"GARZÓN","MANAURE","EL RETÉN","FUENTE DE ORO","CONSACÁ","CÚCUTA","PIJAO","PEREIRA","CABRERA","LA UNIÓN","CHAPARRAL","CALIMA",null,null,"SANTIAGO"]
[null,null,null,null,null,null,null,"PUTUMAYO","TARAPACÁ","APARTADÓ",null,null,"PIOJÓ",null,"CLEMENCIA","BUSBANZÁ","MARMATO","PUERTO RICO","RECETOR","FLORENCIA","GAMARRA","EL CANTÓN DEL SAN PABLO","LOS CÓRDOBAS","CACHIPAY",null,null,"GIGANTE","RIOHACHA","FUNDACIÓN","GRANADA","CONTADERO","CUCUTILLA","QUIMBAYA","PUEBLO RICO","CALIFORNIA","LOS PALMITOS","COELLO","CANDELARIA",null,null,"SIBUNDOY"]
[null,null,null,null,null,null,null,null,null,"ARBOLETES",null,null,"POLONUEVO",null,"CÓRDOBA","CALDAS","MARQUETALIA","SAN JOSÉ DEL FRAGUA","SABANALARGA","GUACHENÉ","GONZÁLEZ","EL CARMEN DE ATRATO","MOMIL","CAJICÁ",null,null,"GUADALUPE","SAN JUAN DEL CESAR","GUAMAL","GUAMAL","CÓRDOBA","DURANIA","SALENTO","QUINCHÍA","CAPITANEJO","MAJAGUAL","COYAIMA","CARTAGO",null,null,"VALLE DEL GUAMUEZ"]
[null,null,null,null,null,null,null,null,null,"ARGELIA",null,null,"PONEDERA",null,"EL CARMEN DE BOLÍVAR","CAMPOHERMOSO","MARULANDA","SAN VICENTE DEL CAGUÁN","SÁCAMA","GUAPÍ","LA GLORIA","EL LITORAL DEL SAN JUAN","MOÑITOS","CAPARRAPÍ",null,null,"HOBO","URIBIA","NUEVA GRANADA","LA MACARENA","CUASPÚD","EL CARMEN",null,"SANTA ROSA DE CABAL","CARCASÍ","MORROA","CUNDAY","DAGUA",null,null,"VILLAGARZÓN"]
[null,null,null,null,null,null,null,null,null,"ARMENIA",null,null,"PUERTO COLOMBIA",null,"EL GUAMO","CERINZA","NEIRA","SOLANO","SAN LUIS DE PALENQUE","INZÁ","LA JAGUA DE IBIRICO","ISTMINA","MONTELÍBANO","CÁQUEZA",null,null,"ÍQUIRA","URUMITA","PEDRAZA","LEJANÍAS","CUMBAL","EL TARRA",null,"SANTUARIO","CEPITÁ","OVEJAS","DOLORES","EL ÁGUILA"]
[null,null,null,null,null,null,null,null,null,"BARBOSA",null,null,"REPELÓN",null,"EL PEÑÓN","CHINAVITA","NORCASIA","SOLITA","TÁMARA","JAMBALÓ","LA PAZ","JURADÓ","MONTERÍA","CARMEN DE CARUPA",null,null,"ISNOS","VILLANUEVA","PIJIÑO DEL CARMEN","MAPIRIPÁN","CUMBITARA","EL ZULIA",null,null,"CERRITO","PALMITO","ESPINAL","EL CAIRO"]
[null,null,null,null,null,null,null,null,null,"BELLO",null,null,"SABANAGRANDE",null,"HATILLO DE LOBA","CHIQUINQUIRÁ","PÁCORA","VALPARAÍSO","TAURAMENA","LA SIERRA","MANAURE BALCÓN DEL CESAR","LLORÓ","PLANETA RICA","CHAGUANÍ",null,null,"LA ARGENTINA",null,"PIVIJAY","MESETAS","EL CHARCO","GRAMALOTE",null,null,"CHARALÁ","SAMPUÉS","FALAN","EL CERRITO"]
[null,null,null,null,null,null,null,null,null,"BELMIRA",null,null,"SABANALARGA",null,"MAGANGUÉ","CHÍQUIZA","PALESTINA",null,"TRINIDAD","LA VEGA","PAILITAS","MEDIO ATRATO","PUEBLO NUEVO","CHÍA",null,null,"LA PLATA",null,"PLATO","PUERTO CONCORDIA","EL PEÑOL","HACARÍ",null,null,"CHARTA","SAN BENITO ABAD","FLANDES","EL DOVIO"]
[null,null,null,null,null,null,null,null,null,"BETANIA",null,null,"SANTA LUCÍA",null,"MAHATES","CHISCAS","PENSILVANIA",null,"VILLANUEVA","LÓPEZ DE MICAY","PELAYA","MEDIO BAUDÓ","PUERTO ESCONDIDO","CHIPAQUE",null,null,"NÁTAGA",null,"PUEBLOVIEJO","PUERTO GAITÁN","EL ROSARIO","HERRÁN",null,null,"CHIMA","SAN JUAN DE BETULIA","FRESNO","FLORIDA"]
[null,null,null,null,null,null,null,null,null,"BETULIA",null,null,"SANTO TOMÁS",null,"MARGARITA","CHITA","RIOSUCIO",null,"YOPAL","MERCADERES","PUEBLO BELLO","MEDIO SAN JUAN","PUERTO LIBERTADOR","CHOACHÍ",null,null,"NEIVA",null,"REMOLINO","PUERTO LLERAS","EL TABLÓN DE GÓMEZ","LA ESPERANZA",null,null,"CHIPATÁ","SAN LUIS DE SINCÉ","GUAMO","GINEBRA"]
[null,null,null,null,null,null,null,null,null,"BRICEÑO",null,null,"SOLEDAD",null,"MARÍA LA BAJA","CHITARAQUE","RISARALDA",null,null,"MIRANDA","RÍO DE ORO","NÓVITA","PURÍSIMA DE LA CONCEPCIÓN","CHOCONTÁ",null,null,"OPORAPA",null,"SABANAS DE SAN ÁNGEL","PUERTO LÓPEZ","EL TAMBO","LA PLAYA",null,null,"CIMITARRA","SAN MARCOS","HERVEO","GUACARÍ"]
[null,null,null,null,null,null,null,null,null,"BURITICÁ",null,null,"SUAN",null,"MOMPÓS","CHIVATÁ","SALAMINA",null,null,"MORALES","SAN ALBERTO","NUQUÍ","SAHAGÚN","COGUA",null,null,"PAICOL",null,"SALAMINA","PUERTO RICO","FRANCISCO PIZARRO","LABATECA",null,null,"CONCEPCIÓN","SAN ONOFRE","HONDA","GUADALAJARA DE BUGA"]
[null,null,null,null,null,null,null,null,null,"CÁCERES",null,null,"TUBARÁ",null,"MONTECRISTO","CHIVOR","SAMANÁ",null,null,"PADILLA","SAN DIEGO","QUIBDÓ","SAN ANDRÉS DE SOTAVENTO","COTA",null,null,"PALERMO",null,"SAN SEBASTIÁN DE BUENAVISTA","RESTREPO","FUNES","LOS PATIOS",null,null,"CONFINES","SAN PEDRO","IBAGUÉ","JAMUNDÍ"]
[null,null,null,null,null,null,null,null,null,"CAICEDO",null,null,"USIACURÍ",null,"MORALES","CIÉNEGA","SAN JOSÉ",null,null,"PÁEZ","SAN MARTÍN","RÍO IRÓ","SAN ANTERO","CUCUNUBÁ",null,null,"PALESTINA",null,"SAN ZENÓN","SAN CARLOS DE GUAROA","GUACHUCAL","LOURDES",null,null,"CONTRATACIÓN","SANTIAGO DE TOLÚ","ICONONZO","LA CUMBRE"]
[null,null,null,null,null,null,null,null,null,"CALDAS",null,null,null,null,"NOROSÍ","CÓMBITA","SUPÍA",null,null,"PATÍA","TAMALAMEQUE","RÍO QUITO","SAN BERNARDO DEL VIENTO","EL COLEGIO",null,null,"PITAL",null,"SANTA ANA","SAN JUAN DE ARAMA","GUAITARILLA","MUTISCUA",null,null,"COROMORO","SINCELEJO","LÉRIDA","LA UNIÓN"]
[null,null,null,null,null,null,null,null,null,"CAMPAMENTO",null,null,null,null,"PINILLOS","COPER","VICTORIA",null,null,"PIAMONTE","VALLEDUPAR","RIOSUCIO","SAN CARLOS","EL PEÑÓN",null,null,"PITALITO",null,"SANTA BÁRBARA DE PINTO","SAN JUANITO","GUALMATÁN","OCAÑA",null,null,"CURITÍ","SUCRE","LÍBANO","LA VICTORIA"]
[null,null,null,null,null,null,null,null,null,"CAÑASGORDAS",null,null,null,null,"REGIDOR","CORRALES","VILLAMARÍA",null,null,"PIENDAMÓ",null,"SAN JOSÉ DEL PALMAR","SAN JOSÉ DE URÉ","EL ROSAL",null,null,"RIVERA",null,"SANTA MARTA","SAN MARTÍN","ILES","PAMPLONA",null,null,"EL CARMEN DE CHUCURÍ","TOLÚ VIEJO","MELGAR","OBANDO"]
[null,null,null,null,null,null,null,null,null,"CARACOLÍ",null,null,null,null,"RÍO VIEJO","COVARACHÍA","VITERBO",null,null,"POPAYÁN",null,"SIPÍ","SAN PELAYO","FACATATIVÁ",null,null,"SALADOBLANCO",null,"SITIONUEVO","URIBE","IMUÉS","PAMPLONITA",null,null,"EL GUACAMAYO",null,"MURILLO","PALMIRA"]
[null,null,null,null,null,null,null,null,null,"CARAMANTA",null,null,null,null,"SAN CRISTÓBAL","CUBARÁ",null,null,null,"PUERTO TEJADA",null,"TADÓ","TIERRALTA","FÓMEQUE",null,null,"SAN AGUSTÍN",null,"TENERIFE","VILLAVICENCIO","IPIALES","PUERTO SANTANDER",null,null,"EL PEÑÓN",null,"NATAGAIMA","PRADERA"]
[null,null,null,null,null,null,null,null,null,"CAREPA",null,null,null,null,"SAN ESTANISLAO","CUCAITA",null,null,null,"PURACÉ",null,"UNGUÍA","TUCHÍN","FOSCA",null,null,"SANTA MARÍA",null,"ZAPAYÁN","VISTAHERMOSA","LA CRUZ","RAGONVALIA",null,null,"EL PLAYÓN",null,"ORTEGA","RESTREPO"]
[null,null,null,null,null,null,null,null,null,"CAROLINA",null,null,null,null,"SAN FERNANDO","CUÍTIVA",null,null,null,"ROSAS",null,"UNIÓN PANAMERICANA","VALENCIA","FUNZA",null,null,"SUAZA",null,"ZONA BANANERA",null,"LA FLORIDA","SALAZAR",null,null,"ENCINO",null,"PALOCABILDO","RIOFRÍO"]
[null,null,null,null,null,null,null,null,null,"CAUCASIA",null,null,null,null,"SAN JACINTO","DUITAMA",null,null,null,"SAN SEBASTIÁN",null,null,null,"FÚQUENE",null,null,"TARQUI",null,null,null,"LA LLANADA","SAN CALIXTO",null,null,"ENCISO",null,"PIEDRAS","ROLDANILLO"]
[null,null,null,null,null,null,null,null,null,"CHIGORODÓ",null,null,null,null,"SAN JACINTO DEL CAUCA","EL COCUY",null,null,null,"SANTA ROSA",null,null,null,"FUSAGASUGÁ",null,null,"TELLO",null,null,null,"LA TOLA","SAN CAYETANO",null,null,"FLORIÁN",null,"PLANADAS","SAN PEDRO"]
[null,null,null,null,null,null,null,null,null,"CISNEROS",null,null,null,null,"SAN JUAN NEPOMUCENO","EL ESPINO",null,null,null,"SANTANDER DE QUILICHAO",null,null,null,"GACHALÁ",null,null,"TERUEL",null,null,null,"LA UNIÓN","SANTIAGO",null,null,"FLORIDABLANCA",null,"PRADO","SEVILLA"]
[null,null,null,null,null,null,null,null,null,"CIUDAD BOLÍVAR",null,null,null,null,"SAN MARTÍN DE LOBA","FIRAVITOBA",null,null,null,"SILVIA",null,null,null,"GACHANCIPÁ",null,null,"TESALIA",null,null,null,"LEIVA","SARDINATA",null,null,"GALÁN",null,"PURIFICACIÓN","TORO"]
[null,null,null,null,null,null,null,null,null,"COCORNÁ",null,null,null,null,"SAN PABLO","FLORESTA",null,null,null,"SOTARA",null,null,null,"GACHETÁ",null,null,"TIMANÁ",null,null,null,"LINARES","SILOS",null,null,"GÁMBITA",null,"RIOBLANCO","TRUJILLO"]
[null,null,null,null,null,null,null,null,null,"CONCEPCIÓN",null,null,null,null,"SANTA CATALINA","GACHANTIVÁ",null,null,null,"SUÁREZ",null,null,null,"GAMA",null,null,"VILLAVIEJA",null,null,null,"LOS ANDES","TEORAMA",null,null,"GIRÓN",null,"RONCESVALLES","TULUÁ"]
[null,null,null,null,null,null,null,null,null,"CONCORDIA",null,null,null,null,"SANTA ROSA","GÁMEZA",null,null,null,"SUCRE",null,null,null,"GIRARDOT",null,null,"YAGUARÁ",null,null,null,"MAGÜÍ","TIBÚ",null,null,"GUACA",null,"ROVIRA","ULLOA"]
[null,null,null,null,null,null,null,null,null,"COPACABANA",null,null,null,null,"SANTA ROSA DEL SUR","GARAGOA",null,null,null,"TIMBÍO",null,null,null,"GRANADA",null,null,null,null,null,null,"MALLAMA","TOLEDO",null,null,"GUADALUPE",null,"SALDAÑA","VERSALLES"]
[null,null,null,null,null,null,null,null,null,"DABEIBA",null,null,null,null,"SIMITÍ","GUACAMAYAS",null,null,null,"TIMBIQUÍ",null,null,null,"GUACHETÁ",null,null,null,null,null,null,"MOSQUERA","VILLA CARO",null,null,"GUAPOTÁ",null,"SAN ANTONIO","VIJES"]
[null,null,null,null,null,null,null,null,null,"DONMATÍAS",null,null,null,null,"SOPLAVIENTO","GUATEQUE",null,null,null,"TORIBÍO",null,null,null,"GUADUAS",null,null,null,null,null,null,"NARIÑO","VILLA DEL ROSARIO",null,null,"GUAVATÁ",null,"SAN LUIS","YOTOCO"]
[null,null,null,null,null,null,null,null,null,"EBÉJICO",null,null,null,null,"TALAIGUA NUEVO","GUAYATÁ",null,null,null,"TOTORÓ",null,null,null,"GUASCA",null,null,null,null,null,null,"OLAYA HERRERA",null,null,null,"GÜEPSA",null,"SAN SEBASTIÁN DE MARIQUITA","YUMBO"]
[null,null,null,null,null,null,null,null,null,"EL BAGRE",null,null,null,null,"TIQUISIO","GÜICÁN DE LA SIERRA",null,null,null,"VILLA RICA",null,null,null,"GUATAQUÍ",null,null,null,null,null,null,"OSPINA",null,null,null,"HATO",null,"SANTA ISABEL","ZARZAL"]
[null,null,null,null,null,null,null,null,null,"EL CARMEN DE VIBORAL",null,null,null,null,"TURBACO","IZA",null,null,null,null,null,null,null,"GUATAVITA",null,null,null,null,null,null,"PASTO",null,null,null,"JESÚS MARÍA",null,"SUÁREZ"]
[null,null,null,null,null,null,null,null,null,"EL SANTUARIO",null,null,null,null,"TURBANÁ","JENESANO",null,null,null,null,null,null,null,"GUAYABAL DE SÍQUIMA",null,null,null,null,null,null,"POLICARPA",null,null,null,"JORDÁN",null,"VALLE DE SAN JUAN"]
[null,null,null,null,null,null,null,null,null,"ENTRERRÍOS",null,null,null,null,"VILLANUEVA","JERICÓ",null,null,null,null,null,null,null,"GUAYABETAL",null,null,null,null,null,null,"POTOSÍ",null,null,null,"LA BELLEZA",null,"VENADILLO"]
[null,null,null,null,null,null,null,null,null,"ENVIGADO",null,null,null,null,"ZAMBRANO","LA CAPILLA",null,null,null,null,null,null,null,"GUTIÉRREZ",null,null,null,null,null,null,"PROVIDENCIA",null,null,null,"LA PAZ",null,"VILLAHERMOSA"]
[null,null,null,null,null,null,null,null,null,"FREDONIA",null,null,null,null,null,"LA UVITA",null,null,null,null,null,null,null,"JERUSALÉN",null,null,null,null,null,null,"PUERRES",null,null,null,"LANDÁZURI",null,"VILLARRICA"]
[null,null,null,null,null,null,null,null,null,"FRONTINO",null,null,null,null,null,"LA VICTORIA",null,null,null,null,null,null,null,"JUNÍN",null,null,null,null,null,null,"PUPIALES",null,null,null,"LEBRIJA"]
[null,null,null,null,null,null,null,null,null,"GIRALDO",null,null,null,null,null,"LABRANZAGRANDE",null,null,null,null,null,null,null,"LA CALERA",null,null,null,null,null,null,"RICAURTE",null,null,null,"LOS SANTOS"]
[null,null,null,null,null,null,null,null,null,"GIRARDOTA",null,null,null,null,null,"MACANAL",null,null,null,null,null,null,null,"LA MESA",null,null,null,null,null,null,"ROBERTO PAYÁN",null,null,null,"MACARAVITA"]
[null,null,null,null,null,null,null,null,null,"GÓMEZ PLATA",null,null,null,null,null,"MARIPÍ",null,null,null,null,null,null,null,"LA PALMA",null,null,null,null,null,null,"SAMANIEGO",null,null,null,"MÁLAGA"]
[null,null,null,null,null,null,null,null,null,"GRANADA",null,null,null,null,null,"MIRAFLORES",null,null,null,null,null,null,null,"LA PEÑA",null,null,null,null,null,null,"SAN ANDRÉS DE TUMACO",null,null,null,"MATANZA"]
[null,null,null,null,null,null,null,null,null,"GUADALUPE",null,null,null,null,null,"MONGUA",null,null,null,null,null,null,null,"LA VEGA",null,null,null,null,null,null,"SAN BERNARDO",null,null,null,"MOGOTES"]
[null,null,null,null,null,null,null,null,null,"GUARNE",null,null,null,null,null,"MONGUÍ",null,null,null,null,null,null,null,"LENGUAZAQUE",null,null,null,null,null,null,"SAN LORENZO",null,null,null,"MOLAGAVITA"]
[null,null,null,null,null,null,null,null,null,"GUATAPÉ",null,null,null,null,null,"MONIQUIRÁ",null,null,null,null,null,null,null,"MACHETÁ",null,null,null,null,null,null,"SAN PABLO",null,null,null,"OCAMONTE"]
[null,null,null,null,null,null,null,null,null,"HELICONIA",null,null,null,null,null,"MOTAVITA",null,null,null,null,null,null,null,"MADRID",null,null,null,null,null,null,"SAN PEDRO DE CARTAGO",null,null,null,"OIBA"]
[null,null,null,null,null,null,null,null,null,"HISPANIA",null,null,null,null,null,"MUZO",null,null,null,null,null,null,null,"MANTA",null,null,null,null,null,null,"SANDONÁ",null,null,null,"ONZAGA"]
[null,null,null,null,null,null,null,null,null,"ITAGÜÍ",null,null,null,null,null,"NOBSA",null,null,null,null,null,null,null,"MEDINA",null,null,null,null,null,null,"SANTA BÁRBARA",null,null,null,"PALMAR"]
[null,null,null,null,null,null,null,null,null,"ITUANGO",null,null,null,null,null,"NUEVO COLÓN",null,null,null,null,null,null,null,"MOSQUERA",null,null,null,null,null,null,"SANTACRUZ",null,null,null,"PALMAS DEL SOCORRO"]
[null,null,null,null,null,null,null,null,null,"JARDÍN",null,null,null,null,null,"OICATÁ",null,null,null,null,null,null,null,"NARIÑO",null,null,null,null,null,null,"SAPUYES",null,null,null,"PÁRAMO"]
[null,null,null,null,null,null,null,null,null,"JERICÓ",null,null,null,null,null,"OTANCHE",null,null,null,null,null,null,null,"NEMOCÓN",null,null,null,null,null,null,"TAMINANGO",null,null,null,"PIEDECUESTA"]
[null,null,null,null,null,null,null,null,null,"LA CEJA",null,null,null,null,null,"PACHAVITA",null,null,null,null,null,null,null,"NILO",null,null,null,null,null,null,"TANGUA",null,null,null,"PINCHOTE"]
[null,null,null,null,null,null,null,null,null,"LA ESTRELLA",null,null,null,null,null,"PÁEZ",null,null,null,null,null,null,null,"NIMAIMA",null,null,null,null,null,null,"TÚQUERRES",null,null,null,"PUENTE NACIONAL"]
[null,null,null,null,null,null,null,null,null,"LA PINTADA",null,null,null,null,null,"PAIPA",null,null,null,null,null,null,null,"NOCAIMA",null,null,null,null,null,null,"YACUANQUER",null,null,null,"PUERTO PARRA"]
[null,null,null,null,null,null,null,null,null,"LA UNIÓN",null,null,null,null,null,"PAJARITO",null,null,null,null,null,null,null,"PACHO",null,null,null,null,null,null,null,null,null,null,"PUERTO WILCHES"]
[null,null,null,null,null,null,null,null,null,"LIBORINA",null,null,null,null,null,"PANQUEBA",null,null,null,null,null,null,null,"PAIME",null,null,null,null,null,null,null,null,null,null,"RIONEGRO"]
[null,null,null,null,null,null,null,null,null,"MACEO",null,null,null,null,null,"PAUNA",null,null,null,null,null,null,null,"PANDI",null,null,null,null,null,null,null,null,null,null,"SABANA DE TORRES"]
[null,null,null,null,null,null,null,null,null,"MARINILLA",null,null,null,null,null,"PAYA",null,null,null,null,null,null,null,"PARATEBUENO",null,null,null,null,null,null,null,null,null,null,"SAN ANDRÉS"]
[null,null,null,null,null,null,null,null,null,"MEDELLÍN",null,null,null,null,null,"PAZ DE RÍO",null,null,null,null,null,null,null,"PASCA",null,null,null,null,null,null,null,null,null,null,"SAN BENITO"]
[null,null,null,null,null,null,null,null,null,"MONTEBELLO",null,null,null,null,null,"PESCA",null,null,null,null,null,null,null,"PUERTO SALGAR",null,null,null,null,null,null,null,null,null,null,"SAN GIL"]
[null,null,null,null,null,null,null,null,null,"MURINDÓ",null,null,null,null,null,"PISBA",null,null,null,null,null,null,null,"PULÍ",null,null,null,null,null,null,null,null,null,null,"SAN JOAQUÍN"]
[null,null,null,null,null,null,null,null,null,"MUTATÁ",null,null,null,null,null,"PUERTO BOYACÁ",null,null,null,null,null,null,null,"QUEBRADANEGRA",null,null,null,null,null,null,null,null,null,null,"SAN JOSÉ DE MIRANDA"]
[null,null,null,null,null,null,null,null,null,"NARIÑO",null,null,null,null,null,"QUÍPAMA",null,null,null,null,null,null,null,"QUETAME",null,null,null,null,null,null,null,null,null,null,"SAN MIGUEL"]
[null,null,null,null,null,null,null,null,null,"NECHÍ",null,null,null,null,null,"RAMIRIQUÍ",null,null,null,null,null,null,null,"QUIPILE",null,null,null,null,null,null,null,null,null,null,"SAN VICENTE DE CHUCURÍ"]
[null,null,null,null,null,null,null,null,null,"NECOCLÍ",null,null,null,null,null,"RÁQUIRA",null,null,null,null,null,null,null,"RICAURTE",null,null,null,null,null,null,null,null,null,null,"SANTA BÁRBARA"]
[null,null,null,null,null,null,null,null,null,"OLAYA",null,null,null,null,null,"RONDÓN",null,null,null,null,null,null,null,"SAN ANTONIO DEL TEQUENDAMA",null,null,null,null,null,null,null,null,null,null,"SANTA HELENA DEL OPÓN"]
[null,null,null,null,null,null,null,null,null,"PEÑOL",null,null,null,null,null,"SABOYÁ",null,null,null,null,null,null,null,"SAN BERNARDO",null,null,null,null,null,null,null,null,null,null,"SIMACOTA"]
[null,null,null,null,null,null,null,null,null,"PEQUE",null,null,null,null,null,"SÁCHICA",null,null,null,null,null,null,null,"SAN CAYETANO",null,null,null,null,null,null,null,null,null,null,"SOCORRO"]
[null,null,null,null,null,null,null,null,null,"PUEBLORRICO",null,null,null,null,null,"SAMACÁ",null,null,null,null,null,null,null,"SAN FRANCISCO",null,null,null,null,null,null,null,null,null,null,"SUAITA"]
[null,null,null,null,null,null,null,null,null,"PUERTO BERRÍO",null,null,null,null,null,"SAN EDUARDO",null,null,null,null,null,null,null,"SAN JUAN DE RIOSECO",null,null,null,null,null,null,null,null,null,null,"SUCRE"]
[null,null,null,null,null,null,null,null,null,"PUERTO NARE",null,null,null,null,null,"SAN JOSÉ DE PARE",null,null,null,null,null,null,null,"SASAIMA",null,null,null,null,null,null,null,null,null,null,"SURATÁ"]
[null,null,null,null,null,null,null,null,null,"PUERTO TRIUNFO",null,null,null,null,null,"SAN LUIS DE GACENO",null,null,null,null,null,null,null,"SESQUILÉ",null,null,null,null,null,null,null,null,null,null,"TONA"]
[null,null,null,null,null,null,null,null,null,"REMEDIOS",null,null,null,null,null,"SAN MATEO",null,null,null,null,null,null,null,"SIBATÉ",null,null,null,null,null,null,null,null,null,null,"VALLE DE SAN JOSÉ"]
[null,null,null,null,null,null,null,null,null,"RETIRO",null,null,null,null,null,"SAN MIGUEL DE SEMA",null,null,null,null,null,null,null,"SILVANIA",null,null,null,null,null,null,null,null,null,null,"VÉLEZ"]
[null,null,null,null,null,null,null,null,null,"RIONEGRO",null,null,null,null,null,"SAN PABLO DE BORBUR",null,null,null,null,null,null,null,"SIMIJACA",null,null,null,null,null,null,null,null,null,null,"VETAS"]
[null,null,null,null,null,null,null,null,null,"SABANALARGA",null,null,null,null,null,"SANTA MARÍA",null,null,null,null,null,null,null,"SOACHA",null,null,null,null,null,null,null,null,null,null,"VILLANUEVA"]
[null,null,null,null,null,null,null,null,null,"SABANETA",null,null,null,null,null,"SANTA ROSA DE VITERBO",null,null,null,null,null,null,null,"SOPÓ",null,null,null,null,null,null,null,null,null,null,"ZAPATOCA"]
[null,null,null,null,null,null,null,null,null,"SALGAR",null,null,null,null,null,"SANTA SOFÍA",null,null,null,null,null,null,null,"SUBACHOQUE"]
[null,null,null,null,null,null,null,null,null,"SAN ANDRÉS DE CUERQUÍA",null,null,null,null,null,"SANTANA",null,null,null,null,null,null,null,"SUESCA"]
[null,null,null,null,null,null,null,null,null,"SAN CARLOS",null,null,null,null,null,"SATIVANORTE",null,null,null,null,null,null,null,"SUPATÁ"]
[null,null,null,null,null,null,null,null,null,"SAN FRANCISCO",null,null,null,null,null,"SATIVASUR",null,null,null,null,null,null,null,"SUSA"]
[null,null,null,null,null,null,null,null,null,"SAN JERÓNIMO",null,null,null,null,null,"SIACHOQUE",null,null,null,null,null,null,null,"SUTATAUSA"]
[null,null,null,null,null,null,null,null,null,"SAN JOSÉ DE LA MONTAÑA",null,null,null,null,null,"SOATÁ",null,null,null,null,null,null,null,"TABIO"]
[null,null,null,null,null,null,null,null,null,"SAN JUAN DE URABÁ",null,null,null,null,null,"SOCHA",null,null,null,null,null,null,null,"TAUSA"]
[null,null,null,null,null,null,null,null,null,"SAN LUIS",null,null,null,null,null,"SOCOTÁ",null,null,null,null,null,null,null,"TENA"]
[null,null,null,null,null,null,null,null,null,"SAN PEDRO DE LOS MILAGROS",null,null,null,null,null,"SOGAMOSO",null,null,null,null,null,null,null,"TENJO"]
[null,null,null,null,null,null,null,null,null,"SAN PEDRO DE URABÁ",null,null,null,null,null,"SOMONDOCO",null,null,null,null,null,null,null,"TIBACUY"]
[null,null,null,null,null,null,null,null,null,"SAN RAFAEL",null,null,null,null,null,"SORA",null,null,null,null,null,null,null,"TIBIRITA"]
[null,null,null,null,null,null,null,null,null,"SAN ROQUE",null,null,null,null,null,"SORACÁ",null,null,null,null,null,null,null,"TOCAIMA"]
[null,null,null,null,null,null,null,null,null,"SAN VICENTE FERRER",null,null,null,null,null,"SOTAQUIRÁ",null,null,null,null,null,null,null,"TOCANCIPÁ"]
[null,null,null,null,null,null,null,null,null,"SANTA BÁRBARA",null,null,null,null,null,"SUSACÓN",null,null,null,null,null,null,null,"TOPAIPÍ"]
[null,null,null,null,null,null,null,null,null,"SANTA FÉ DE ANTIOQUIA",null,null,null,null,null,"SUTAMARCHÁN",null,null,null,null,null,null,null,"UBALÁ"]
[null,null,null,null,null,null,null,null,null,"SANTA ROSA DE OSOS",null,null,null,null,null,"SUTATENZA",null,null,null,null,null,null,null,"UBAQUE"]
[null,null,null,null,null,null,null,null,null,"SANTO DOMINGO",null,null,null,null,null,"TASCO",null,null,null,null,null,null,null,"UNE"]
[null,null,null,null,null,null,null,null,null,"SEGOVIA",null,null,null,null,null,"TENZA",null,null,null,null,null,null,null,"ÚTICA"]
[null,null,null,null,null,null,null,null,null,"SONSÓN",null,null,null,null,null,"TIBANÁ",null,null,null,null,null,null,null,"VENECIA"]
[null,null,null,null,null,null,null,null,null,"SOPETRÁN",null,null,null,null,null,"TIBASOSA",null,null,null,null,null,null,null,"VERGARA"]
[null,null,null,null,null,null,null,null,null,"TÁMESIS",null,null,null,null,null,"TINJACÁ",null,null,null,null,null,null,null,"VIANÍ"]
[null,null,null,null,null,null,null,null,null,"TARAZÁ",null,null,null,null,null,"TIPACOQUE",null,null,null,null,null,null,null,"VILLA DE SAN DIEGO DE UBATÉ"]
[null,null,null,null,null,null,null,null,null,"TARSO",null,null,null,null,null,"TOCA",null,null,null,null,null,null,null,"VILLAGÓMEZ"]
[null,null,null,null,null,null,null,null,null,"TITIRIBÍ",null,null,null,null,null,"TOGÜÍ",null,null,null,null,null,null,null,"VILLAPINZÓN"]
[null,null,null,null,null,null,null,null,null,"TOLEDO",null,null,null,null,null,"TÓPAGA",null,null,null,null,null,null,null,"VILLETA"]
[null,null,null,null,null,null,null,null,null,"TURBO",null,null,null,null,null,"TOTA",null,null,null,null,null,null,null,"VIOTÁ"]
[null,null,null,null,null,null,null,null,null,"URAMITA",null,null,null,null,null,"TUNJA",null,null,null,null,null,null,null,"YACOPÍ"]
[null,null,null,null,null,null,null,null,null,"URRAO",null,null,null,null,null,"TUNUNGUÁ",null,null,null,null,null,null,null,"ZIPACÓN"]
[null,null,null,null,null,null,null,null,null,"VALDIVIA",null,null,null,null,null,"TURMEQUÉ",null,null,null,null,null,null,null,"ZIPAQUIRÁ"]
[null,null,null,null,null,null,null,null,null,"VALPARAÍSO",null,null,null,null,null,"TUTA"]
[null,null,null,null,null,null,null,null,null,"VEGACHÍ",null,null,null,null,null,"TUTAZÁ"]
[null,null,null,null,null,null,null,null,null,"VENECIA",null,null,null,null,null,"ÚMBITA"]
[null,null,null,null,null,null,null,null,null,"VIGÍA DEL FUERTE",null,null,null,null,null,"VENTAQUEMADA"]
[null,null,null,null,null,null,null,null,null,"YALÍ",null,null,null,null,null,"VILLA DE LEYVA"]
[null,null,null,null,null,null,null,null,null,"YARUMAL",null,null,null,null,null,"VIRACACHÁ"]
[null,null,null,null,null,null,null,null,null,"YOLOMBÓ",null,null,null,null,null,"ZETAQUIRA"]
[null,null,null,null,null,null,null,null,null,"YONDÓ"]
[null,null,null,null,null,null,null,null,null,"ZARAGOZA"]

{"sheet":"CSV","index":5,"n_rows":1,"n_cols":8,"rows_kept":1,"cut":false,"hidden":true,"merged":[]}
["Tipo (servicio o artÃ­culo)","Cantidad","CÃ³digo de unidad de medida*","PosiciÃ³n","Precio base","Divisa","DescripciÃ³n","MercancÃ­a"]